Cogmind - Beta 15 @@@ ROGUE MODE // 2025.07.21 @ 17:43:22 Player: Skysub Result: Destroyed by Piercing Trap Performance ------------- Evolutions (0) 0 Regions Visited (2) 400 Robots Destroyed (36) 180 Value Destroyed (540) 540 Prototype IDs (0) 0 Alien Tech Used (0) 0 Bonus (0) 0 TOTAL SCORE: 1120 Bonus ------- None Cogmind --------- Core Integrity 0/250 Matter 290/300 Energy 159/160 System Corruption 0% Temperature Cool (0) Movement Rolling (110) Ox2 Location -10/Subcaves Parts ------- > --- POWER (1) -------- Light Nuclear Core > --- PROPULSION (2) --- Light Treads Wheel > --- UTILITY (2) ------ Large Storage Unit > --- WEAPON (2) ------- Medium Laser Assault Rifle > --- INVENTORY (15) --- Light Treads Compact Wheel Small Storage Unit Improved Targeting Computer Improved Targeting Computer EMP Blaster EMP Blaster EMP Blaster Grenade Launcher Flail Peak State ------------ > --- POWER ------------ Light Nuclear Core > --- PROPULSION ------- Light Treads Wheel > --- UTILITY ---------- Large Storage Unit > --- WEAPON ----------- Medium Laser Light Assault Rifle > --- INVENTORY -------- Compact Wheel Small Storage Unit Improved Targeting Computer Improved Targeting Computer EMP Blaster EMP Blaster EMP Blaster Grenade Launcher Flail [Rating: 9] Favorites ----------- Power Light Nuclear Core Engine Ion Engine Power Core Light Nuclear Core Propulsion Light Treads Treads Light Treads Wheel Wheel Utility Large Storage Unit Storage Large Storage Unit Weapon Light Assault Rifle Energy Gun Medium Laser Ballistic Gun Light Assault Rifle Build | -11 -10 -10 ------- Run | Yrd Mat Sub Slots Evolved . | . . . Power . | . . . Propulsion . | . . . Utility . | . . . Weapon . | . . . Parts Attached 14 | 7 6 1 Power 2 | 1 1 . Engine 1 | 1 . . Core 1 | . 1 . Reactor . | . . . Propulsion 5 | 2 2 1 Treads 3 | 2 1 . Leg . | . . . Wheel 2 | . 1 1 Hover . | . . . Flight . | . . . Utility 2 | 1 1 . Device . | . . . Storage 2 | 1 1 . Processor . | . . . Hackware . | . . . Protection . | . . . Artifact . | . . . Weapon 5 | 3 2 . Energy Gun 1 | 1 . . Energy Cannon . | . . . Ballistic Gun 4 | 2 2 . Ballistic Cannon . | . . . Launcher . | . . . Special Weapon . | . . . Impact Weapon . | . . . Slashing Weapon . | . . . Piercing Weapon . | . . . Special Melee Weapon . | . . . Unidentified Prototypes . | . . . Parts Lost 7 | . 6 1 Power 1 | . 1 . Propulsion 3 | . 2 1 Utility . | . . . Weapon 3 | . 3 . Highest Loss Streak 2 | . 2 1 To Critical Strikes 1 | . 1 . Average Backups 10 | 3 10 11 Power . | . . . Propulsion 2 | 1 2 3 Utility 2 | . 2 3 Weapon 4 | . 5 5 Tool/Special . | . . . Unused Backups 11 | . 2 9 Power 1 | . 1 . Propulsion 2 | . . 2 Utility 2 | . . 2 Weapon 6 | . 1 5 Tool/Special . | . . . Average Slot Usage (%) 82 | . 82 81 Engine 3 | . 3 . Core 8 | . 8 14 Treads 19 | . 19 14 Wheel 8 | . 8 10 Storage 14 | . 14 14 Energy Gun 8 | . 8 14 Ballistic Gun 19 | . 19 14 Peak Build Rating 9 | 6 9 9 Average Rating 7 | 5 8 8 On Entrance 5 | . 6 9 Naked Turns . | . . . Heaviest Build 33 | 13 33 29 Greatest Support 40 | 40 40 10 Greatest Overweight (x) 9 | . 9 2 Average Overweight (x) 1 | . 1 2 Largest Inventory Capacity 15 | 8 15 15 Average Capacity 13 | 7 13 15 Most Carried 13 | 5 13 11 Average Carried 10 | 3 10 10 Final Capacity 15 | 8 15 15 Final Carried 11 | 5 11 10 Class Distribution -------------------- 100% | Mutant Dominant Class ---------------- Mutant | -10/Materials Mutant | -10/Subcaves Resources | -11 -10 -10 ----------- Run | Yrd Mat Sub Matter Collected 675 | 232 442 1 Remotely . | . . . Salvage Created 945 | 175 770 . Parts 70 | 13 57 . Haulers Intercepted 1 | . 1 . Recyclers Shooed 1 | . 1 . Parts Field Recycled . | . . . Retrieved Matter . | . . . Parts Self-Destructed . | . . . Prevented . | . . . Kills | -11 -10 -10 ------- Run | Yrd Mat Sub Combat Hostiles Destroyed 21 | . 21 . Guns 21 | . 21 . Classes Destroyed 8 | 3 5 . Worker 1 | 1 . . Builder 5 | . 5 . Tunneler 5 | 4 1 . Hauler 1 | . 1 . Recycler 1 | 1 . . Watcher 2 | . 2 . Swarmer 12 | . 12 . Grunt 9 | . 9 . Best Kill Streak 6 | 6 4 . Combat Bots Only 3 | . 3 . Max Kills in Single Turn 2 | 1 2 . Gunslinging 1 | . 1 . Exploded . | . . . Melee . | . . . Uniques/NPCs Destroyed . | . . . Combat | -11 -10 -10 -------- Run | Yrd Mat Sub Hostile Shots Fired 114 | . 114 . Missed 25 | . 25 . Hits 89 | . 89 . Projectile 89 | . 89 . Critical Strikes 2 | . 2 . Damage Taken 1066 | . 909 157 Core 262 | . 177 85 Absorbed by Shields . | . . . Core Remaining (%) 100 | 100 . . Volleys Fired 106 | 18 88 . Largest 2 | 2 2 . Hottest 70 | 40 70 . Shots Fired 205 | 36 169 . Gun 205 | 36 169 . Cannon . | . . . Launcher . | . . . Special . | . . . Kinetic 173 | 36 137 . Thermal 32 | . 32 . Explosive . | . . . Electromagnetic . | . . . Robot Hit Streak 13 | 8 13 . Robot Miss Streak 5 | 2 5 . Penetration Max . | . . . Secondary Targets 5 | . 5 . Max Gunslinging Chain 1 | . 1 . Shots Hit Robots 133 | 25 108 . Core Hits 57 | 10 47 . Critical Kills 1 | . 1 . Critical Parts Destroyed . | . . . Critical Strikes 4 | . 4 . Burn 3 | . 3 . Destroy 1 | . 1 . Melee Attacks . | . . . Impact . | . . . Slashing . | . . . Piercing . | . . . Sneak Attacks . | . . . Combat Hostiles . | . . . Follow-up Attacks . | . . . Damage Inflicted 1460 | 248 1212 . Guns 1451 | 248 1203 . Cannons . | . . . Explosions . | . . . Melee . | . . . Ramming 9 | . 9 . Kinetic 1159 | 248 911 . Thermal 292 | . 292 . Explosive . | . . . Electromagnetic . | . . . Impact . | . . . Slashing . | . . . Piercing . | . . . Highest Corruption . | . . . Average Corruption . | . . . Corruption Purged . | . . . Corruption Blocked . | . . . Overload Shots . | . . . Overflow Damage . | . . . Projectiles . | . . . Explosions . | . . . Melee . | . . . Knockbacks 1 | . 1 . Impact 1 | . 1 . Kinetic . | . . . Secondary . | . . . Self-Inflicted Damage . | . . . Shots . | . . . Rammed 2 | . 2 . Targets Rammed 2 | . 2 . Kicked . | . . . Crushed . | . . . Highest Temperature 168 | . 168 . Average Temperature 49 | . 49 . Received Heat Transfer 336 | . 336 . Siege Activations . | . . . Martial Activations . | . . . Shielding Activations . | . . . Robots Disrupted . | . . . Combat Hostiles . | . . . Robots Corrupted . | . . . Combat Hostiles . | . . . Parts Fried . | . . . Impact Corruptions . | . . . Robots Melted . | . . . Combat Hostiles . | . . . Parts Melted 3 | . 3 . Heat Transferred 1073 | . 1073 . Parts Sabotaged . | . . . Parts Stolen . | . . . Parts Stripped . | . . . Power Chain Reactions . | . . . Alert | -11 -10 -10 ------- Run | Yrd Mat Sub Maximum Alert Level . | . . . Low Security (%) 100 | 100 100 . Level 1 . | . . . Level 2 . | . . . Level 3 . | . . . Level 4 . | . . . Level 5 . | . . . High Security . | . . . Max Security . | . . . Peak Influence 157 | 10 157 . Initial 3 | . 3 . Average 80 | 1 88 . Influence Increases 693 | 30 663 . Destroy 0b10 Robot/C 420 | . 420 . Destroy 0b10 Robot/NC 75 | 30 45 . Destroy Leader 106 | . 106 . Successful Hack 17 | . 17 . Select Force Hacks 60 | . 60 . Lose Combat Pursuer 15 | . 15 . Influence Decreases 682 | 25 607 50 Entered New Map 32 | . 2 30 Time Decay 580 | 25 545 10 Lost Part 70 | . 60 10 Squads Dispatched 5 | . 5 . Investigation 4 | . 4 . Extermination . | . . . Reinforcement 1 | . 1 . Assault . | . . . Garrison . | . . . Intercept . | . . . Searches Triggered . | . . . Construction Impeded . | . . . Haulers Reinforced . | . . . Active Scanning Responses . | . . . Cargo Convoy Interrupts . | . . . Stealth | -11 -10 -10 --------- Run | Yrd Mat Sub Distress Signals 3 | . 3 . Communications Jammed . | . . . Distress Signals . | . . . Times Spotted 33 | . 33 . Peak Tracking Total 5 | . 5 . Tactical Retreats 1 | . 1 . Traps | -11 -10 -10 ------- Run | Yrd Mat Sub Traps Triggered 7 | . 5 2 Indirectly . | . . . Trap Hack Attempts . | . . . Triggered . | . . . Disarmed . | . . . Reprogrammed . | . . . Reused . | . . . Traps Extracted . | . . . Installed . | . . . Triggered . | . . . Machines | -11 -10 -10 ---------- Run | Yrd Mat Sub Machines Disabled . | . . . Max in Single Turn . | . . . Machines Repaired . | . . . Machines Dismantled . | . . . Machines Sabotaged . | . . . Overloaded Fab Kills . | . . . Hacking | -11 -10 -10 --------- Run | Yrd Mat Sub Machines Accessed 7 | . 7 . Terminals 5 | . 5 . Fabricators . | . . . Repair Stations . | . . . Recycling Units 2 | . 2 . Scanalyzers . | . . . Garrison Access . | . . . Total Hacks 22 | . 22 . Successful 16 | . 16 . Failed 6 | . 6 . Catastrophic . | . . . Database Lockouts . | . . . Manual 15 | . 15 . Terminals 17 | . 17 . Fabricators . | . . . Repair Stations . | . . . Recycling Units 5 | . 5 . Scanalyzers . | . . . Garrison Access . | . . . Terminal Hacks 4 | . 4 . Terminal Index 1 | . 1 . Alert Level 1 | . 1 . Locate Traps 1 | . 1 . Zone Layout 1 | . 1 . Fabricator Hacks . | . . . Repair Station Hacks . | . . . Recycling Unit Hacks 3 | . 3 . Report Inventory 2 | . 2 . Retrieve Components 1 | . 1 . Scanalyzer . | . . . Garrison Access Hacks . | . . . Unauthorized Hacks 9 | . 9 . Terminals 7 | . 7 . Botnet 2 | . 2 . Skim 5 | . 5 . Fabricators . | . . . Repair Stations . | . . . Recycling Units 2 | . 2 . Tunnel 2 | . 2 . Scanalyzers . | . . . Garrison Access . | . . . Data Cores Recovered . | . . . Used . | . . . Hacking Detections 4 | . 4 . Full Trace Events . | . . . Feedback Events . | . . . Feedback Blocked . | . . . Robot Schematics Acquired . | . . . Robots Built . | . . . Authchips . | . . . Time . | . . . Total Robot Build Rating . | . . . Part Schematics Acquired . | . . . Parts Built . | . . . Authchips . | . . . Time . | . . . Total Part Build Rating . | . . . Parts Repaired . | . . . Time . | . . . Parts Recycled . | . . . Recycled Matter . | . . . Retrieved Matter . | . . . Retrieved Components 9 | . 9 . Parts Scanalyzed . | . . . Part Schematics Acquired . | . . . Parts Damaged . | . . . Bothacking | -11 -10 -10 ------------ Run | Yrd Mat Sub Used RIF Installer . | . . . Robots Hacked . | . . . Non-combat . | . . . Combat . | . . . Robot Hacks Applied . | . . . Relay Couplers Released . | . . . Fabnet Peak Effective % . | . . . Robots Rewired . | . . . Allies Hacked . | . . . Hacks Repelled . | . . . Allies | -11 -10 -10 -------- Run | Yrd Mat Sub Total Allies . | . . . Largest Group . | . . . Highest-Rated Group . | . . . Highest-Rated Ally . | . . . Total Orders . | . . . Ally Attacks . | . . . Total Damage . | . . . Kills . | . . . Allies Corrupted . | . . . Allies Melted . | . . . Intel | -11 -10 -10 ------- Run | Yrd Mat Sub Active Infowar (turns) . | . . . Robot Analysis Total . | . . . Derelict Logs Recovered . | . . . Drone Launches . | . . . Drone Recoveries . | . . . Exploration | -11 -10 -10 ------------- Run | Yrd Mat Sub Turns Passed 1882 | 175 1676 31 Spaces Moved 955 | 73 857 25 Core 7 | 6 1 . Treads 427 | 67 360 . Legs . | . . . Wheels 521 | . 496 25 Hover . | . . . Flight . | . . . Fastest Speed 50 | 50 110 110 Average Speed 136 | 150 136 110 Slowest Speed 500 | 160 500 110 Overloaded Moves . | . . . Propulsion Burnouts . | . . . Robots Hopped . | . . . Potential Cave-ins . | . . . Cave-ins Triggered . | . . . Exploration Rate (%) 35 | 7 97 3 Regions Visited 2 Branch Regions 1 Pre-discovered Areas 2 | . 2 . Known Exits Taken . | . . . Unknown Exits Taken 2 | 1 1 . Scrap Searched . | . . . Spaces Dug . | . . . Terrain Destroyed . | . . . Melee . | . . . Projectile . | . . . AOE . | . . . Terrain Rammed . | . . . Walls Destroyed . | . . . Machines Disabled . | . . . Actions | -11 -10 -10 --------- Run | Yrd Mat Sub Total 1337 | 102 1209 26 Wait 236 | . 236 . Move 953 | 72 856 25 Hop . | . . . Pick Up 16 | 4 12 . Fast Attach 13 | 6 7 . Attach 6 | . 5 1 Detach 1 | . 1 . Swap 2 | 2 . . Drop 2 | . 2 . Fire 106 | 18 88 . Melee . | . . . Ram . | . . . Kick . | . . . Crush 2 | . 2 . Escape Stasis . | . . . Rewire . | . . . Trap . | . . . Miscellaneous . | . . . Route ------- -11/Scrapyard -10/Materials (discovered 6 exits: [*Mat x3] / [*Min x2] / [*Sub]) -10/Subcaves (discovered 2 exits: Mat / Rec) History --------- Turn | Location | Event 77 | -11/Scrapyard | Discovered new exit (range 14) 176 | -11/Scrapyard | Entered Materials 308 | -10/Materials | Build established: Mutant 350 | -10/Materials | Discovered new exit (range 13) 637 | -10/Materials | Discovered new exit (range 16) 751 | -10/Materials | Discovered new exit (range 14) 899 | -10/Materials | Core integrity fell below 50% 972 | -10/Materials | Discovered new exit (range 5) 1005 | -10/Materials | Learned location of 1 exit from Recycling 1057 | -10/Materials | Learned Storage emergency access door positions 1100 | -10/Materials | Learned 4 Subcaves zone layouts 1101 | -10/Materials | Discovered new exit (range 16) 1133 | -10/Materials | Learned location of 2 exits from Mines 1170 | -10/Materials | Learned location of 2 exits from Subcaves 1186 | -10/Materials | Discovered new exit (range 12) 1191 | -10/Materials | Learned location of 2 exits from Mines 1852 | -10/Materials | Entered Subcaves 1853 | -10/Subcaves | Approached by a straggling Scientist 1853 | -10/Subcaves | Identified exit to Materials 1853 | -10/Subcaves | Identified exit to Recycling 1878 | -10/Subcaves | Core integrity fell below 20% 1883 | -10/Subcaves | Destroyed by Piercing Trap Last Messages --------------- all the Subs lurking out here." Loading 2 Subcaves exits... Loading 4 Subcaves zones... 01856_ ZH-ZLA(c): "Hey, let me tag along and I can get us both out of this nasty situation. At least I think I can... The group I got separated from was talking about a shortcut back to the UFD." 01876_ Acquired 1 matter. 01877_ Triggered Piercing Trap. 01877_ Spikes shoot up from the floor. 01877_ Critical hit (Impale). 01877_ Wheel destroyed. 01877_ Critical hit (Impale). 01880_ ZH-ZLA(c) triggered Shrapnel Trap. 01880_ An expanding cloud of shrapnel blasts out in all directions. 01883_ Triggered Piercing Trap. 01883_ Spikes shoot up from the floor. 01883_ Critical hit (Impale). Map ----- +----------------------------------------------------+ | ??????????????? #### ### ##???## #######???? | | ??????????????? ##?# #####????# #????####?? | | ??????????????? ### ##??????# ###### ##? | | ??????????????? ##?????# ## | | ??????????????? ## ###???## | | ???????????????# ##### ####?# | | ???????????????## ##### ### | | ????????????????# ## ### ## | | ????????????????## ### | | ?????????????????#### ## ##### | | ????????????????????### ## ##???? | | ??????????????????##### ## ####????? | | ?????????????????## ### ## ##???#### | | ????????????????## ### ## ### ##### # | | ???????????????## ### ## ### ## # | | ??????????????? #### ### ##?# # | | ???????????????# ### ##### ##?# | | ???????????????## ###### #?# | | ????????????# ### #???# #?## | | ????????????? ### ###??# ##?## | | ????????????? ##### ##?## ##?## ### | | ???????# ### # ##### ##??# #????? | | ???????####### ;;#####???## ####?? | | ???????????## #????????# #?? | | ??????????## # # ;##???????# #??? | | ??????????# ######@ ; #???####### #???? | | ???????#### #??##; c;##??## # ## #####? | | ???????# #####; ; #### #? | | ???????# # # ##"; ### # ##? | | ???????# ### ## #?? | | ??????## ### ## ####### ##?? | | ?????## ### # #########?????#######??? | | ?????# ##### #####?????????????????? | | ?????## ########### #?????????????????? | | ??????###??####???# ########??????????? | | ??????????## #???## ## ##?????????? | | ?????????## ##???# #?????????? | | ????????## #??## #?????????? | | ???????## #??# ## ## #?????????? | | ?????### ###### ######### ?????????? | | ?????# # # #???????# ?????????? | | ?????# #??????## ?????????? | | ?????# ##??##### ?????????? | | ?????# # # # ###### ?????????? | | ?????# ######### #### ?????????? | | ????## #?????# #### ### ?????????? | | ?????????????????????????????????????????????????? | | ?????????????????????????????????????????????????? | | ?????????????????????????????????????????????????? | | ?????????????????????????????????????????????????? | +----------------------------------------------------+ Best States ------------- Heat Dissipation 25 Energy Generation 14 Energy Capacity 250 Matter Stores 300 Matter Capacity 300 Sight Range 16 Terrain Scan Density 10 Evasion (%) 40 Recoil Reduction 2 Item Schematics ----------------- None Robot Schematics ------------------ None Fabricated ------------ Nothing Repaired ---------- Nothing Alien Tech Used ----------------- None Achievements -------------- None Challenges ------------ None Game ------ Seed FireGuidedLoader Manual? 0 Play Time 00:10:08 Cumulative 167.3 hours Start 2025.07.21 @ 17:33:59 End 2025.07.21 @ 17:43:22 Sessions 1 Manual Loads 0 Difficulty Rogue Special Mode None Game No. 190 Rogue 190 Adventurer 0 Explorer 0 Win Type - Total 3 Types 1/0/0/1/0/0/0/0/0/1 Lore% 67 Gallery% 62 Achievement% 55 Wizard Run 0 Options --------- Layout 1 ASCII 0 Keyboard 1 Movement Arrows Keybinds 0 Fullscreen 1 Font 36/Smallcaps Map View 50x40 Zoom Use 0% Tactical HUD 1 Map Filters NONE Filters NONE Steam 1 RUN: c83525cf-6bb5-47bc-bf80-a974577ee09d